{"text_format":"3","workbook":"xlsx","n_sheets":2,"sheets":["Údaje o uchazečích","Srovnávací údaje o uchazečích"],"not_rendered":{"defined_names":4},"read":"whole","date_system":"1900"}

{"sheet":"Údaje o uchazečích","index":0,"n_rows":2,"n_cols":13,"rows_kept":2,"merged":[[0,0,0,3]]}
["Údaje o uchazečích"]
["Příjmení","Jméno","Druhé jméno","Požadovaná pozice","Stav žádosti","Poštovní adresa","Telefon domů","Druhý telefon","E-mailová adresa","Původ žádosti","Datum obdržení životopisu","Jméno náborového pracovníka","Poznámky náborového pracovníka"]

{"sheet":"Srovnávací údaje o uchazečích","index":1,"n_rows":59,"n_cols":12,"rows_kept":59,"merged":[[0,0,0,3]]}
["Srovnávací údaje o uchazečích"]
["Příjmení","Jméno","Druhé jméno","Požadovaná pozice","Současný zaměstnavatel","Současná pozice","Vzdělání","Aktuální stav víza","Počet roků odpovídající praxe","Odpovídající znalosti a dovednosti","Jméno náborového pracovníka","Poznámky náborového pracovníka"]
[{"$f":"IF('Údaje o uchazečích'!A3=\"\",\"\",'Údaje o uchazečích'!A3)","v":""},{"$f":"IF('Údaje o uchazečích'!B3=\"\",\"\",'Údaje o uchazečích'!B3)","v":""},{"$f":"IF('Údaje o uchazečích'!C3=\"\",\"\",'Údaje o uchazečích'!C3)","v":""},{"$f":"IF('Údaje o uchazečích'!D3=\"\",\"\",'Údaje o uchazečích'!D3)","v":""},{"$nulls":6},{"$f":"IF('Údaje o uchazečích'!L3=\"\",\"\",'Údaje o uchazečích'!L3)","v":""},{"$f":"IF('Údaje o uchazečích'!M3=\"\",\"\",'Údaje o uchazečích'!M3)","v":""}]
[{"$f":"IF('Údaje o uchazečích'!A4=\"\",\"\",'Údaje o uchazečích'!A4)","v":""},{"$f":"IF('Údaje o uchazečích'!B4=\"\",\"\",'Údaje o uchazečích'!B4)","v":""},{"$f":"IF('Údaje o uchazečích'!C4=\"\",\"\",'Údaje o uchazečích'!C4)","v":""},{"$f":"IF('Údaje o uchazečích'!D4=\"\",\"\",'Údaje o uchazečích'!D4)","v":""},{"$nulls":6},{"$f":"IF('Údaje o uchazečích'!L4=\"\",\"\",'Údaje o uchazečích'!L4)","v":""},{"$f":"IF('Údaje o uchazečích'!M4=\"\",\"\",'Údaje o uchazečích'!M4)","v":""}]
[{"$f":"IF('Údaje o uchazečích'!A5=\"\",\"\",'Údaje o uchazečích'!A5)","v":""},{"$f":"IF('Údaje o uchazečích'!B5=\"\",\"\",'Údaje o uchazečích'!B5)","v":""},{"$f":"IF('Údaje o uchazečích'!C5=\"\",\"\",'Údaje o uchazečích'!C5)","v":""},{"$f":"IF('Údaje o uchazečích'!D5=\"\",\"\",'Údaje o uchazečích'!D5)","v":""},{"$nulls":6},{"$f":"IF('Údaje o uchazečích'!L5=\"\",\"\",'Údaje o uchazečích'!L5)","v":""},{"$f":"IF('Údaje o uchazečích'!M5=\"\",\"\",'Údaje o uchazečích'!M5)","v":""}]
[{"$f":"IF('Údaje o uchazečích'!A6=\"\",\"\",'Údaje o uchazečích'!A6)","v":""},{"$f":"IF('Údaje o uchazečích'!B6=\"\",\"\",'Údaje o uchazečích'!B6)","v":""},{"$f":"IF('Údaje o uchazečích'!C6=\"\",\"\",'Údaje o uchazečích'!C6)","v":""},{"$f":"IF('Údaje o uchazečích'!D6=\"\",\"\",'Údaje o uchazečích'!D6)","v":""},{"$nulls":6},{"$f":"IF('Údaje o uchazečích'!L6=\"\",\"\",'Údaje o uchazečích'!L6)","v":""},{"$f":"IF('Údaje o uchazečích'!M6=\"\",\"\",'Údaje o uchazečích'!M6)","v":""}]
[{"$f":"IF('Údaje o uchazečích'!A7=\"\",\"\",'Údaje o uchazečích'!A7)","v":""},{"$f":"IF('Údaje o uchazečích'!B7=\"\",\"\",'Údaje o uchazečích'!B7)","v":""},{"$f":"IF('Údaje o uchazečích'!C7=\"\",\"\",'Údaje o uchazečích'!C7)","v":""},{"$f":"IF('Údaje o uchazečích'!D7=\"\",\"\",'Údaje o uchazečích'!D7)","v":""},{"$nulls":6},{"$f":"IF('Údaje o uchazečích'!L7=\"\",\"\",'Údaje o uchazečích'!L7)","v":""},{"$f":"IF('Údaje o uchazečích'!M7=\"\",\"\",'Údaje o uchazečích'!M7)","v":""}]
[{"$f":"IF('Údaje o uchazečích'!A8=\"\",\"\",'Údaje o uchazečích'!A8)","v":""},{"$f":"IF('Údaje o uchazečích'!B8=\"\",\"\",'Údaje o uchazečích'!B8)","v":""},{"$f":"IF('Údaje o uchazečích'!C8=\"\",\"\",'Údaje o uchazečích'!C8)","v":""},{"$f":"IF('Údaje o uchazečích'!D8=\"\",\"\",'Údaje o uchazečích'!D8)","v":""},{"$nulls":6},{"$f":"IF('Údaje o uchazečích'!L8=\"\",\"\",'Údaje o uchazečích'!L8)","v":""},{"$f":"IF('Údaje o uchazečích'!M8=\"\",\"\",'Údaje o uchazečích'!M8)","v":""}]
[{"$f":"IF('Údaje o uchazečích'!A9=\"\",\"\",'Údaje o uchazečích'!A9)","v":""},{"$f":"IF('Údaje o uchazečích'!B9=\"\",\"\",'Údaje o uchazečích'!B9)","v":""},{"$f":"IF('Údaje o uchazečích'!C9=\"\",\"\",'Údaje o uchazečích'!C9)","v":""},{"$f":"IF('Údaje o uchazečích'!D9=\"\",\"\",'Údaje o uchazečích'!D9)","v":""},{"$nulls":6},{"$f":"IF('Údaje o uchazečích'!L9=\"\",\"\",'Údaje o uchazečích'!L9)","v":""},{"$f":"IF('Údaje o uchazečích'!M9=\"\",\"\",'Údaje o uchazečích'!M9)","v":""}]
[{"$f":"IF('Údaje o uchazečích'!A10=\"\",\"\",'Údaje o uchazečích'!A10)","v":""},{"$f":"IF('Údaje o uchazečích'!B10=\"\",\"\",'Údaje o uchazečích'!B10)","v":""},{"$f":"IF('Údaje o uchazečích'!C10=\"\",\"\",'Údaje o uchazečích'!C10)","v":""},{"$f":"IF('Údaje o uchazečích'!D10=\"\",\"\",'Údaje o uchazečích'!D10)","v":""},{"$nulls":6},{"$f":"IF('Údaje o uchazečích'!L10=\"\",\"\",'Údaje o uchazečích'!L10)","v":""},{"$f":"IF('Údaje o uchazečích'!M10=\"\",\"\",'Údaje o uchazečích'!M10)","v":""}]
[{"$f":"IF('Údaje o uchazečích'!A11=\"\",\"\",'Údaje o uchazečích'!A11)","v":""},{"$f":"IF('Údaje o uchazečích'!B11=\"\",\"\",'Údaje o uchazečích'!B11)","v":""},{"$f":"IF('Údaje o uchazečích'!C11=\"\",\"\",'Údaje o uchazečích'!C11)","v":""},{"$f":"IF('Údaje o uchazečích'!D11=\"\",\"\",'Údaje o uchazečích'!D11)","v":""},{"$nulls":6},{"$f":"IF('Údaje o uchazečích'!L11=\"\",\"\",'Údaje o uchazečích'!L11)","v":""},{"$f":"IF('Údaje o uchazečích'!M11=\"\",\"\",'Údaje o uchazečích'!M11)","v":""}]
[{"$f":"IF('Údaje o uchazečích'!A12=\"\",\"\",'Údaje o uchazečích'!A12)","v":""},{"$f":"IF('Údaje o uchazečích'!B12=\"\",\"\",'Údaje o uchazečích'!B12)","v":""},{"$f":"IF('Údaje o uchazečích'!C12=\"\",\"\",'Údaje o uchazečích'!C12)","v":""},{"$f":"IF('Údaje o uchazečích'!D12=\"\",\"\",'Údaje o uchazečích'!D12)","v":""},{"$nulls":6},{"$f":"IF('Údaje o uchazečích'!L12=\"\",\"\",'Údaje o uchazečích'!L12)","v":""},{"$f":"IF('Údaje o uchazečích'!M12=\"\",\"\",'Údaje o uchazečích'!M12)","v":""}]
[{"$f":"IF('Údaje o uchazečích'!A13=\"\",\"\",'Údaje o uchazečích'!A13)","v":""},{"$f":"IF('Údaje o uchazečích'!B13=\"\",\"\",'Údaje o uchazečích'!B13)","v":""},{"$f":"IF('Údaje o uchazečích'!C13=\"\",\"\",'Údaje o uchazečích'!C13)","v":""},{"$f":"IF('Údaje o uchazečích'!D13=\"\",\"\",'Údaje o uchazečích'!D13)","v":""},{"$nulls":6},{"$f":"IF('Údaje o uchazečích'!L13=\"\",\"\",'Údaje o uchazečích'!L13)","v":""},{"$f":"IF('Údaje o uchazečích'!M13=\"\",\"\",'Údaje o uchazečích'!M13)","v":""}]
[{"$f":"IF('Údaje o uchazečích'!A14=\"\",\"\",'Údaje o uchazečích'!A14)","v":""},{"$f":"IF('Údaje o uchazečích'!B14=\"\",\"\",'Údaje o uchazečích'!B14)","v":""},{"$f":"IF('Údaje o uchazečích'!C14=\"\",\"\",'Údaje o uchazečích'!C14)","v":""},{"$f":"IF('Údaje o uchazečích'!D14=\"\",\"\",'Údaje o uchazečích'!D14)","v":""},{"$nulls":6},{"$f":"IF('Údaje o uchazečích'!L14=\"\",\"\",'Údaje o uchazečích'!L14)","v":""},{"$f":"IF('Údaje o uchazečích'!M14=\"\",\"\",'Údaje o uchazečích'!M14)","v":""}]
[{"$f":"IF('Údaje o uchazečích'!A15=\"\",\"\",'Údaje o uchazečích'!A15)","v":""},{"$f":"IF('Údaje o uchazečích'!B15=\"\",\"\",'Údaje o uchazečích'!B15)","v":""},{"$f":"IF('Údaje o uchazečích'!C15=\"\",\"\",'Údaje o uchazečích'!C15)","v":""},{"$f":"IF('Údaje o uchazečích'!D15=\"\",\"\",'Údaje o uchazečích'!D15)","v":""},{"$nulls":6},{"$f":"IF('Údaje o uchazečích'!L15=\"\",\"\",'Údaje o uchazečích'!L15)","v":""},{"$f":"IF('Údaje o uchazečích'!M15=\"\",\"\",'Údaje o uchazečích'!M15)","v":""}]
[{"$f":"IF('Údaje o uchazečích'!A16=\"\",\"\",'Údaje o uchazečích'!A16)","v":""},{"$f":"IF('Údaje o uchazečích'!B16=\"\",\"\",'Údaje o uchazečích'!B16)","v":""},{"$f":"IF('Údaje o uchazečích'!C16=\"\",\"\",'Údaje o uchazečích'!C16)","v":""},{"$f":"IF('Údaje o uchazečích'!D16=\"\",\"\",'Údaje o uchazečích'!D16)","v":""},{"$nulls":6},{"$f":"IF('Údaje o uchazečích'!L16=\"\",\"\",'Údaje o uchazečích'!L16)","v":""},{"$f":"IF('Údaje o uchazečích'!M16=\"\",\"\",'Údaje o uchazečích'!M16)","v":""}]
[{"$f":"IF('Údaje o uchazečích'!A17=\"\",\"\",'Údaje o uchazečích'!A17)","v":""},{"$f":"IF('Údaje o uchazečích'!B17=\"\",\"\",'Údaje o uchazečích'!B17)","v":""},{"$f":"IF('Údaje o uchazečích'!C17=\"\",\"\",'Údaje o uchazečích'!C17)","v":""},{"$f":"IF('Údaje o uchazečích'!D17=\"\",\"\",'Údaje o uchazečích'!D17)","v":""},{"$nulls":6},{"$f":"IF('Údaje o uchazečích'!L17=\"\",\"\",'Údaje o uchazečích'!L17)","v":""},{"$f":"IF('Údaje o uchazečích'!M17=\"\",\"\",'Údaje o uchazečích'!M17)","v":""}]
[{"$f":"IF('Údaje o uchazečích'!A18=\"\",\"\",'Údaje o uchazečích'!A18)","v":""},{"$f":"IF('Údaje o uchazečích'!B18=\"\",\"\",'Údaje o uchazečích'!B18)","v":""},{"$f":"IF('Údaje o uchazečích'!C18=\"\",\"\",'Údaje o uchazečích'!C18)","v":""},{"$f":"IF('Údaje o uchazečích'!D18=\"\",\"\",'Údaje o uchazečích'!D18)","v":""},{"$nulls":6},{"$f":"IF('Údaje o uchazečích'!L18=\"\",\"\",'Údaje o uchazečích'!L18)","v":""},{"$f":"IF('Údaje o uchazečích'!M18=\"\",\"\",'Údaje o uchazečích'!M18)","v":""}]
[{"$f":"IF('Údaje o uchazečích'!A19=\"\",\"\",'Údaje o uchazečích'!A19)","v":""},{"$f":"IF('Údaje o uchazečích'!B19=\"\",\"\",'Údaje o uchazečích'!B19)","v":""},{"$f":"IF('Údaje o uchazečích'!C19=\"\",\"\",'Údaje o uchazečích'!C19)","v":""},{"$f":"IF('Údaje o uchazečích'!D19=\"\",\"\",'Údaje o uchazečích'!D19)","v":""},{"$nulls":6},{"$f":"IF('Údaje o uchazečích'!L19=\"\",\"\",'Údaje o uchazečích'!L19)","v":""},{"$f":"IF('Údaje o uchazečích'!M19=\"\",\"\",'Údaje o uchazečích'!M19)","v":""}]
[{"$f":"IF('Údaje o uchazečích'!A20=\"\",\"\",'Údaje o uchazečích'!A20)","v":""},{"$f":"IF('Údaje o uchazečích'!B20=\"\",\"\",'Údaje o uchazečích'!B20)","v":""},{"$f":"IF('Údaje o uchazečích'!C20=\"\",\"\",'Údaje o uchazečích'!C20)","v":""},{"$f":"IF('Údaje o uchazečích'!D20=\"\",\"\",'Údaje o uchazečích'!D20)","v":""},{"$nulls":6},{"$f":"IF('Údaje o uchazečích'!L20=\"\",\"\",'Údaje o uchazečích'!L20)","v":""},{"$f":"IF('Údaje o uchazečích'!M20=\"\",\"\",'Údaje o uchazečích'!M20)","v":""}]
[{"$f":"IF('Údaje o uchazečích'!A21=\"\",\"\",'Údaje o uchazečích'!A21)","v":""},{"$f":"IF('Údaje o uchazečích'!B21=\"\",\"\",'Údaje o uchazečích'!B21)","v":""},{"$f":"IF('Údaje o uchazečích'!C21=\"\",\"\",'Údaje o uchazečích'!C21)","v":""},{"$f":"IF('Údaje o uchazečích'!D21=\"\",\"\",'Údaje o uchazečích'!D21)","v":""},{"$nulls":6},{"$f":"IF('Údaje o uchazečích'!L21=\"\",\"\",'Údaje o uchazečích'!L21)","v":""},{"$f":"IF('Údaje o uchazečích'!M21=\"\",\"\",'Údaje o uchazečích'!M21)","v":""}]
[{"$f":"IF('Údaje o uchazečích'!A22=\"\",\"\",'Údaje o uchazečích'!A22)","v":""},{"$f":"IF('Údaje o uchazečích'!B22=\"\",\"\",'Údaje o uchazečích'!B22)","v":""},{"$f":"IF('Údaje o uchazečích'!C22=\"\",\"\",'Údaje o uchazečích'!C22)","v":""},{"$f":"IF('Údaje o uchazečích'!D22=\"\",\"\",'Údaje o uchazečích'!D22)","v":""},{"$nulls":6},{"$f":"IF('Údaje o uchazečích'!L22=\"\",\"\",'Údaje o uchazečích'!L22)","v":""},{"$f":"IF('Údaje o uchazečích'!M22=\"\",\"\",'Údaje o uchazečích'!M22)","v":""}]
[{"$f":"IF('Údaje o uchazečích'!A23=\"\",\"\",'Údaje o uchazečích'!A23)","v":""},{"$f":"IF('Údaje o uchazečích'!B23=\"\",\"\",'Údaje o uchazečích'!B23)","v":""},{"$f":"IF('Údaje o uchazečích'!C23=\"\",\"\",'Údaje o uchazečích'!C23)","v":""},{"$f":"IF('Údaje o uchazečích'!D23=\"\",\"\",'Údaje o uchazečích'!D23)","v":""},{"$nulls":6},{"$f":"IF('Údaje o uchazečích'!L23=\"\",\"\",'Údaje o uchazečích'!L23)","v":""},{"$f":"IF('Údaje o uchazečích'!M23=\"\",\"\",'Údaje o uchazečích'!M23)","v":""}]
[{"$f":"IF('Údaje o uchazečích'!A24=\"\",\"\",'Údaje o uchazečích'!A24)","v":""},{"$f":"IF('Údaje o uchazečích'!B24=\"\",\"\",'Údaje o uchazečích'!B24)","v":""},{"$f":"IF('Údaje o uchazečích'!C24=\"\",\"\",'Údaje o uchazečích'!C24)","v":""},{"$f":"IF('Údaje o uchazečích'!D24=\"\",\"\",'Údaje o uchazečích'!D24)","v":""},{"$nulls":6},{"$f":"IF('Údaje o uchazečích'!L24=\"\",\"\",'Údaje o uchazečích'!L24)","v":""},{"$f":"IF('Údaje o uchazečích'!M24=\"\",\"\",'Údaje o uchazečích'!M24)","v":""}]
[{"$f":"IF('Údaje o uchazečích'!A25=\"\",\"\",'Údaje o uchazečích'!A25)","v":""},{"$f":"IF('Údaje o uchazečích'!B25=\"\",\"\",'Údaje o uchazečích'!B25)","v":""},{"$f":"IF('Údaje o uchazečích'!C25=\"\",\"\",'Údaje o uchazečích'!C25)","v":""},{"$f":"IF('Údaje o uchazečích'!D25=\"\",\"\",'Údaje o uchazečích'!D25)","v":""},{"$nulls":6},{"$f":"IF('Údaje o uchazečích'!L25=\"\",\"\",'Údaje o uchazečích'!L25)","v":""},{"$f":"IF('Údaje o uchazečích'!M25=\"\",\"\",'Údaje o uchazečích'!M25)","v":""}]
[{"$f":"IF('Údaje o uchazečích'!A26=\"\",\"\",'Údaje o uchazečích'!A26)","v":""},{"$f":"IF('Údaje o uchazečích'!B26=\"\",\"\",'Údaje o uchazečích'!B26)","v":""},{"$f":"IF('Údaje o uchazečích'!C26=\"\",\"\",'Údaje o uchazečích'!C26)","v":""},{"$f":"IF('Údaje o uchazečích'!D26=\"\",\"\",'Údaje o uchazečích'!D26)","v":""},{"$nulls":6},{"$f":"IF('Údaje o uchazečích'!L26=\"\",\"\",'Údaje o uchazečích'!L26)","v":""},{"$f":"IF('Údaje o uchazečích'!M26=\"\",\"\",'Údaje o uchazečích'!M26)","v":""}]
[{"$f":"IF('Údaje o uchazečích'!A27=\"\",\"\",'Údaje o uchazečích'!A27)","v":""},{"$f":"IF('Údaje o uchazečích'!B27=\"\",\"\",'Údaje o uchazečích'!B27)","v":""},{"$f":"IF('Údaje o uchazečích'!C27=\"\",\"\",'Údaje o uchazečích'!C27)","v":""},{"$f":"IF('Údaje o uchazečích'!D27=\"\",\"\",'Údaje o uchazečích'!D27)","v":""},{"$nulls":6},{"$f":"IF('Údaje o uchazečích'!L27=\"\",\"\",'Údaje o uchazečích'!L27)","v":""},{"$f":"IF('Údaje o uchazečích'!M27=\"\",\"\",'Údaje o uchazečích'!M27)","v":""}]
[{"$f":"IF('Údaje o uchazečích'!A28=\"\",\"\",'Údaje o uchazečích'!A28)","v":""},{"$f":"IF('Údaje o uchazečích'!B28=\"\",\"\",'Údaje o uchazečích'!B28)","v":""},{"$f":"IF('Údaje o uchazečích'!C28=\"\",\"\",'Údaje o uchazečích'!C28)","v":""},{"$f":"IF('Údaje o uchazečích'!D28=\"\",\"\",'Údaje o uchazečích'!D28)","v":""},{"$nulls":6},{"$f":"IF('Údaje o uchazečích'!L28=\"\",\"\",'Údaje o uchazečích'!L28)","v":""},{"$f":"IF('Údaje o uchazečích'!M28=\"\",\"\",'Údaje o uchazečích'!M28)","v":""}]
[{"$f":"IF('Údaje o uchazečích'!A29=\"\",\"\",'Údaje o uchazečích'!A29)","v":""},{"$f":"IF('Údaje o uchazečích'!B29=\"\",\"\",'Údaje o uchazečích'!B29)","v":""},{"$f":"IF('Údaje o uchazečích'!C29=\"\",\"\",'Údaje o uchazečích'!C29)","v":""},{"$f":"IF('Údaje o uchazečích'!D29=\"\",\"\",'Údaje o uchazečích'!D29)","v":""},{"$nulls":6},{"$f":"IF('Údaje o uchazečích'!L29=\"\",\"\",'Údaje o uchazečích'!L29)","v":""},{"$f":"IF('Údaje o uchazečích'!M29=\"\",\"\",'Údaje o uchazečích'!M29)","v":""}]
[{"$f":"IF('Údaje o uchazečích'!A30=\"\",\"\",'Údaje o uchazečích'!A30)","v":""},{"$f":"IF('Údaje o uchazečích'!B30=\"\",\"\",'Údaje o uchazečích'!B30)","v":""},{"$f":"IF('Údaje o uchazečích'!C30=\"\",\"\",'Údaje o uchazečích'!C30)","v":""},{"$f":"IF('Údaje o uchazečích'!D30=\"\",\"\",'Údaje o uchazečích'!D30)","v":""},{"$nulls":6},{"$f":"IF('Údaje o uchazečích'!L30=\"\",\"\",'Údaje o uchazečích'!L30)","v":""},{"$f":"IF('Údaje o uchazečích'!M30=\"\",\"\",'Údaje o uchazečích'!M30)","v":""}]
[{"$f":"IF('Údaje o uchazečích'!A31=\"\",\"\",'Údaje o uchazečích'!A31)","v":""},{"$f":"IF('Údaje o uchazečích'!B31=\"\",\"\",'Údaje o uchazečích'!B31)","v":""},{"$f":"IF('Údaje o uchazečích'!C31=\"\",\"\",'Údaje o uchazečích'!C31)","v":""},{"$f":"IF('Údaje o uchazečích'!D31=\"\",\"\",'Údaje o uchazečích'!D31)","v":""},{"$nulls":6},{"$f":"IF('Údaje o uchazečích'!L31=\"\",\"\",'Údaje o uchazečích'!L31)","v":""},{"$f":"IF('Údaje o uchazečích'!M31=\"\",\"\",'Údaje o uchazečích'!M31)","v":""}]
[{"$f":"IF('Údaje o uchazečích'!A32=\"\",\"\",'Údaje o uchazečích'!A32)","v":""},{"$f":"IF('Údaje o uchazečích'!B32=\"\",\"\",'Údaje o uchazečích'!B32)","v":""},{"$f":"IF('Údaje o uchazečích'!C32=\"\",\"\",'Údaje o uchazečích'!C32)","v":""},{"$f":"IF('Údaje o uchazečích'!D32=\"\",\"\",'Údaje o uchazečích'!D32)","v":""},{"$nulls":6},{"$f":"IF('Údaje o uchazečích'!L32=\"\",\"\",'Údaje o uchazečích'!L32)","v":""},{"$f":"IF('Údaje o uchazečích'!M32=\"\",\"\",'Údaje o uchazečích'!M32)","v":""}]
[{"$f":"IF('Údaje o uchazečích'!A33=\"\",\"\",'Údaje o uchazečích'!A33)","v":""},{"$f":"IF('Údaje o uchazečích'!B33=\"\",\"\",'Údaje o uchazečích'!B33)","v":""},{"$f":"IF('Údaje o uchazečích'!C33=\"\",\"\",'Údaje o uchazečích'!C33)","v":""},{"$f":"IF('Údaje o uchazečích'!D33=\"\",\"\",'Údaje o uchazečích'!D33)","v":""},{"$nulls":6},{"$f":"IF('Údaje o uchazečích'!L33=\"\",\"\",'Údaje o uchazečích'!L33)","v":""},{"$f":"IF('Údaje o uchazečích'!M33=\"\",\"\",'Údaje o uchazečích'!M33)","v":""}]
[{"$f":"IF('Údaje o uchazečích'!A34=\"\",\"\",'Údaje o uchazečích'!A34)","v":""},{"$f":"IF('Údaje o uchazečích'!B34=\"\",\"\",'Údaje o uchazečích'!B34)","v":""},{"$f":"IF('Údaje o uchazečích'!C34=\"\",\"\",'Údaje o uchazečích'!C34)","v":""},{"$f":"IF('Údaje o uchazečích'!D34=\"\",\"\",'Údaje o uchazečích'!D34)","v":""},{"$nulls":6},{"$f":"IF('Údaje o uchazečích'!L34=\"\",\"\",'Údaje o uchazečích'!L34)","v":""},{"$f":"IF('Údaje o uchazečích'!M34=\"\",\"\",'Údaje o uchazečích'!M34)","v":""}]
[{"$f":"IF('Údaje o uchazečích'!A35=\"\",\"\",'Údaje o uchazečích'!A35)","v":""},{"$f":"IF('Údaje o uchazečích'!B35=\"\",\"\",'Údaje o uchazečích'!B35)","v":""},{"$f":"IF('Údaje o uchazečích'!C35=\"\",\"\",'Údaje o uchazečích'!C35)","v":""},{"$f":"IF('Údaje o uchazečích'!D35=\"\",\"\",'Údaje o uchazečích'!D35)","v":""},{"$nulls":6},{"$f":"IF('Údaje o uchazečích'!L35=\"\",\"\",'Údaje o uchazečích'!L35)","v":""},{"$f":"IF('Údaje o uchazečích'!M35=\"\",\"\",'Údaje o uchazečích'!M35)","v":""}]
[{"$f":"IF('Údaje o uchazečích'!A36=\"\",\"\",'Údaje o uchazečích'!A36)","v":""},{"$f":"IF('Údaje o uchazečích'!B36=\"\",\"\",'Údaje o uchazečích'!B36)","v":""},{"$f":"IF('Údaje o uchazečích'!C36=\"\",\"\",'Údaje o uchazečích'!C36)","v":""},{"$f":"IF('Údaje o uchazečích'!D36=\"\",\"\",'Údaje o uchazečích'!D36)","v":""},{"$nulls":6},{"$f":"IF('Údaje o uchazečích'!L36=\"\",\"\",'Údaje o uchazečích'!L36)","v":""},{"$f":"IF('Údaje o uchazečích'!M36=\"\",\"\",'Údaje o uchazečích'!M36)","v":""}]
[{"$f":"IF('Údaje o uchazečích'!A37=\"\",\"\",'Údaje o uchazečích'!A37)","v":""},{"$f":"IF('Údaje o uchazečích'!B37=\"\",\"\",'Údaje o uchazečích'!B37)","v":""},{"$f":"IF('Údaje o uchazečích'!C37=\"\",\"\",'Údaje o uchazečích'!C37)","v":""},{"$f":"IF('Údaje o uchazečích'!D37=\"\",\"\",'Údaje o uchazečích'!D37)","v":""},{"$nulls":6},{"$f":"IF('Údaje o uchazečích'!L37=\"\",\"\",'Údaje o uchazečích'!L37)","v":""},{"$f":"IF('Údaje o uchazečích'!M37=\"\",\"\",'Údaje o uchazečích'!M37)","v":""}]
[{"$f":"IF('Údaje o uchazečích'!A38=\"\",\"\",'Údaje o uchazečích'!A38)","v":""},{"$f":"IF('Údaje o uchazečích'!B38=\"\",\"\",'Údaje o uchazečích'!B38)","v":""},{"$f":"IF('Údaje o uchazečích'!C38=\"\",\"\",'Údaje o uchazečích'!C38)","v":""},{"$f":"IF('Údaje o uchazečích'!D38=\"\",\"\",'Údaje o uchazečích'!D38)","v":""},{"$nulls":6},{"$f":"IF('Údaje o uchazečích'!L38=\"\",\"\",'Údaje o uchazečích'!L38)","v":""},{"$f":"IF('Údaje o uchazečích'!M38=\"\",\"\",'Údaje o uchazečích'!M38)","v":""}]
[{"$f":"IF('Údaje o uchazečích'!A39=\"\",\"\",'Údaje o uchazečích'!A39)","v":""},{"$f":"IF('Údaje o uchazečích'!B39=\"\",\"\",'Údaje o uchazečích'!B39)","v":""},{"$f":"IF('Údaje o uchazečích'!C39=\"\",\"\",'Údaje o uchazečích'!C39)","v":""},{"$f":"IF('Údaje o uchazečích'!D39=\"\",\"\",'Údaje o uchazečích'!D39)","v":""},{"$nulls":6},{"$f":"IF('Údaje o uchazečích'!L39=\"\",\"\",'Údaje o uchazečích'!L39)","v":""},{"$f":"IF('Údaje o uchazečích'!M39=\"\",\"\",'Údaje o uchazečích'!M39)","v":""}]
[{"$f":"IF('Údaje o uchazečích'!A40=\"\",\"\",'Údaje o uchazečích'!A40)","v":""},{"$f":"IF('Údaje o uchazečích'!B40=\"\",\"\",'Údaje o uchazečích'!B40)","v":""},{"$f":"IF('Údaje o uchazečích'!C40=\"\",\"\",'Údaje o uchazečích'!C40)","v":""},{"$f":"IF('Údaje o uchazečích'!D40=\"\",\"\",'Údaje o uchazečích'!D40)","v":""},{"$nulls":6},{"$f":"IF('Údaje o uchazečích'!L40=\"\",\"\",'Údaje o uchazečích'!L40)","v":""},{"$f":"IF('Údaje o uchazečích'!M40=\"\",\"\",'Údaje o uchazečích'!M40)","v":""}]
[{"$f":"IF('Údaje o uchazečích'!A41=\"\",\"\",'Údaje o uchazečích'!A41)","v":""},{"$f":"IF('Údaje o uchazečích'!B41=\"\",\"\",'Údaje o uchazečích'!B41)","v":""},{"$f":"IF('Údaje o uchazečích'!C41=\"\",\"\",'Údaje o uchazečích'!C41)","v":""},{"$f":"IF('Údaje o uchazečích'!D41=\"\",\"\",'Údaje o uchazečích'!D41)","v":""},{"$nulls":6},{"$f":"IF('Údaje o uchazečích'!L41=\"\",\"\",'Údaje o uchazečích'!L41)","v":""},{"$f":"IF('Údaje o uchazečích'!M41=\"\",\"\",'Údaje o uchazečích'!M41)","v":""}]
[{"$f":"IF('Údaje o uchazečích'!A42=\"\",\"\",'Údaje o uchazečích'!A42)","v":""},{"$f":"IF('Údaje o uchazečích'!B42=\"\",\"\",'Údaje o uchazečích'!B42)","v":""},{"$f":"IF('Údaje o uchazečích'!C42=\"\",\"\",'Údaje o uchazečích'!C42)","v":""},{"$f":"IF('Údaje o uchazečích'!D42=\"\",\"\",'Údaje o uchazečích'!D42)","v":""},{"$nulls":6},{"$f":"IF('Údaje o uchazečích'!L42=\"\",\"\",'Údaje o uchazečích'!L42)","v":""},{"$f":"IF('Údaje o uchazečích'!M42=\"\",\"\",'Údaje o uchazečích'!M42)","v":""}]
[{"$f":"IF('Údaje o uchazečích'!A43=\"\",\"\",'Údaje o uchazečích'!A43)","v":""},{"$f":"IF('Údaje o uchazečích'!B43=\"\",\"\",'Údaje o uchazečích'!B43)","v":""},{"$f":"IF('Údaje o uchazečích'!C43=\"\",\"\",'Údaje o uchazečích'!C43)","v":""},{"$f":"IF('Údaje o uchazečích'!D43=\"\",\"\",'Údaje o uchazečích'!D43)","v":""},{"$nulls":6},{"$f":"IF('Údaje o uchazečích'!L43=\"\",\"\",'Údaje o uchazečích'!L43)","v":""},{"$f":"IF('Údaje o uchazečích'!M43=\"\",\"\",'Údaje o uchazečích'!M43)","v":""}]
[{"$f":"IF('Údaje o uchazečích'!A44=\"\",\"\",'Údaje o uchazečích'!A44)","v":""},{"$f":"IF('Údaje o uchazečích'!B44=\"\",\"\",'Údaje o uchazečích'!B44)","v":""},{"$f":"IF('Údaje o uchazečích'!C44=\"\",\"\",'Údaje o uchazečích'!C44)","v":""},{"$f":"IF('Údaje o uchazečích'!D44=\"\",\"\",'Údaje o uchazečích'!D44)","v":""},{"$nulls":6},{"$f":"IF('Údaje o uchazečích'!L44=\"\",\"\",'Údaje o uchazečích'!L44)","v":""},{"$f":"IF('Údaje o uchazečích'!M44=\"\",\"\",'Údaje o uchazečích'!M44)","v":""}]
[{"$f":"IF('Údaje o uchazečích'!A45=\"\",\"\",'Údaje o uchazečích'!A45)","v":""},{"$f":"IF('Údaje o uchazečích'!B45=\"\",\"\",'Údaje o uchazečích'!B45)","v":""},{"$f":"IF('Údaje o uchazečích'!C45=\"\",\"\",'Údaje o uchazečích'!C45)","v":""},{"$f":"IF('Údaje o uchazečích'!D45=\"\",\"\",'Údaje o uchazečích'!D45)","v":""},{"$nulls":6},{"$f":"IF('Údaje o uchazečích'!L45=\"\",\"\",'Údaje o uchazečích'!L45)","v":""},{"$f":"IF('Údaje o uchazečích'!M45=\"\",\"\",'Údaje o uchazečích'!M45)","v":""}]
[{"$f":"IF('Údaje o uchazečích'!A46=\"\",\"\",'Údaje o uchazečích'!A46)","v":""},{"$f":"IF('Údaje o uchazečích'!B46=\"\",\"\",'Údaje o uchazečích'!B46)","v":""},{"$f":"IF('Údaje o uchazečích'!C46=\"\",\"\",'Údaje o uchazečích'!C46)","v":""},{"$f":"IF('Údaje o uchazečích'!D46=\"\",\"\",'Údaje o uchazečích'!D46)","v":""},{"$nulls":6},{"$f":"IF('Údaje o uchazečích'!L46=\"\",\"\",'Údaje o uchazečích'!L46)","v":""},{"$f":"IF('Údaje o uchazečích'!M46=\"\",\"\",'Údaje o uchazečích'!M46)","v":""}]
[{"$f":"IF('Údaje o uchazečích'!A47=\"\",\"\",'Údaje o uchazečích'!A47)","v":""},{"$f":"IF('Údaje o uchazečích'!B47=\"\",\"\",'Údaje o uchazečích'!B47)","v":""},{"$f":"IF('Údaje o uchazečích'!C47=\"\",\"\",'Údaje o uchazečích'!C47)","v":""},{"$f":"IF('Údaje o uchazečích'!D47=\"\",\"\",'Údaje o uchazečích'!D47)","v":""},{"$nulls":6},{"$f":"IF('Údaje o uchazečích'!L47=\"\",\"\",'Údaje o uchazečích'!L47)","v":""},{"$f":"IF('Údaje o uchazečích'!M47=\"\",\"\",'Údaje o uchazečích'!M47)","v":""}]
[{"$f":"IF('Údaje o uchazečích'!A48=\"\",\"\",'Údaje o uchazečích'!A48)","v":""},{"$f":"IF('Údaje o uchazečích'!B48=\"\",\"\",'Údaje o uchazečích'!B48)","v":""},{"$f":"IF('Údaje o uchazečích'!C48=\"\",\"\",'Údaje o uchazečích'!C48)","v":""},{"$f":"IF('Údaje o uchazečích'!D48=\"\",\"\",'Údaje o uchazečích'!D48)","v":""},{"$nulls":6},{"$f":"IF('Údaje o uchazečích'!L48=\"\",\"\",'Údaje o uchazečích'!L48)","v":""},{"$f":"IF('Údaje o uchazečích'!M48=\"\",\"\",'Údaje o uchazečích'!M48)","v":""}]
[{"$f":"IF('Údaje o uchazečích'!A49=\"\",\"\",'Údaje o uchazečích'!A49)","v":""},{"$f":"IF('Údaje o uchazečích'!B49=\"\",\"\",'Údaje o uchazečích'!B49)","v":""},{"$f":"IF('Údaje o uchazečích'!C49=\"\",\"\",'Údaje o uchazečích'!C49)","v":""},{"$f":"IF('Údaje o uchazečích'!D49=\"\",\"\",'Údaje o uchazečích'!D49)","v":""},{"$nulls":6},{"$f":"IF('Údaje o uchazečích'!L49=\"\",\"\",'Údaje o uchazečích'!L49)","v":""},{"$f":"IF('Údaje o uchazečích'!M49=\"\",\"\",'Údaje o uchazečích'!M49)","v":""}]
[{"$f":"IF('Údaje o uchazečích'!A50=\"\",\"\",'Údaje o uchazečích'!A50)","v":""},{"$f":"IF('Údaje o uchazečích'!B50=\"\",\"\",'Údaje o uchazečích'!B50)","v":""},{"$f":"IF('Údaje o uchazečích'!C50=\"\",\"\",'Údaje o uchazečích'!C50)","v":""},{"$f":"IF('Údaje o uchazečích'!D50=\"\",\"\",'Údaje o uchazečích'!D50)","v":""},{"$nulls":6},{"$f":"IF('Údaje o uchazečích'!L50=\"\",\"\",'Údaje o uchazečích'!L50)","v":""},{"$f":"IF('Údaje o uchazečích'!M50=\"\",\"\",'Údaje o uchazečích'!M50)","v":""}]
[{"$f":"IF('Údaje o uchazečích'!A51=\"\",\"\",'Údaje o uchazečích'!A51)","v":""},{"$f":"IF('Údaje o uchazečích'!B51=\"\",\"\",'Údaje o uchazečích'!B51)","v":""},{"$f":"IF('Údaje o uchazečích'!C51=\"\",\"\",'Údaje o uchazečích'!C51)","v":""},{"$f":"IF('Údaje o uchazečích'!D51=\"\",\"\",'Údaje o uchazečích'!D51)","v":""},{"$nulls":6},{"$f":"IF('Údaje o uchazečích'!L51=\"\",\"\",'Údaje o uchazečích'!L51)","v":""},{"$f":"IF('Údaje o uchazečích'!M51=\"\",\"\",'Údaje o uchazečích'!M51)","v":""}]
[{"$f":"IF('Údaje o uchazečích'!A52=\"\",\"\",'Údaje o uchazečích'!A52)","v":""},{"$f":"IF('Údaje o uchazečích'!B52=\"\",\"\",'Údaje o uchazečích'!B52)","v":""},{"$f":"IF('Údaje o uchazečích'!C52=\"\",\"\",'Údaje o uchazečích'!C52)","v":""},{"$f":"IF('Údaje o uchazečích'!D52=\"\",\"\",'Údaje o uchazečích'!D52)","v":""},{"$nulls":6},{"$f":"IF('Údaje o uchazečích'!L52=\"\",\"\",'Údaje o uchazečích'!L52)","v":""},{"$f":"IF('Údaje o uchazečích'!M52=\"\",\"\",'Údaje o uchazečích'!M52)","v":""}]
[{"$f":"IF('Údaje o uchazečích'!A53=\"\",\"\",'Údaje o uchazečích'!A53)","v":""},{"$f":"IF('Údaje o uchazečích'!B53=\"\",\"\",'Údaje o uchazečích'!B53)","v":""},{"$f":"IF('Údaje o uchazečích'!C53=\"\",\"\",'Údaje o uchazečích'!C53)","v":""},{"$f":"IF('Údaje o uchazečích'!D53=\"\",\"\",'Údaje o uchazečích'!D53)","v":""},{"$nulls":6},{"$f":"IF('Údaje o uchazečích'!L53=\"\",\"\",'Údaje o uchazečích'!L53)","v":""},{"$f":"IF('Údaje o uchazečích'!M53=\"\",\"\",'Údaje o uchazečích'!M53)","v":""}]
[{"$f":"IF('Údaje o uchazečích'!A54=\"\",\"\",'Údaje o uchazečích'!A54)","v":""},{"$f":"IF('Údaje o uchazečích'!B54=\"\",\"\",'Údaje o uchazečích'!B54)","v":""},{"$f":"IF('Údaje o uchazečích'!C54=\"\",\"\",'Údaje o uchazečích'!C54)","v":""},{"$f":"IF('Údaje o uchazečích'!D54=\"\",\"\",'Údaje o uchazečích'!D54)","v":""},{"$nulls":6},{"$f":"IF('Údaje o uchazečích'!L54=\"\",\"\",'Údaje o uchazečích'!L54)","v":""},{"$f":"IF('Údaje o uchazečích'!M54=\"\",\"\",'Údaje o uchazečích'!M54)","v":""}]
[{"$f":"IF('Údaje o uchazečích'!A55=\"\",\"\",'Údaje o uchazečích'!A55)","v":""},{"$f":"IF('Údaje o uchazečích'!B55=\"\",\"\",'Údaje o uchazečích'!B55)","v":""},{"$f":"IF('Údaje o uchazečích'!C55=\"\",\"\",'Údaje o uchazečích'!C55)","v":""},{"$f":"IF('Údaje o uchazečích'!D55=\"\",\"\",'Údaje o uchazečích'!D55)","v":""},{"$nulls":6},{"$f":"IF('Údaje o uchazečích'!L55=\"\",\"\",'Údaje o uchazečích'!L55)","v":""},{"$f":"IF('Údaje o uchazečích'!M55=\"\",\"\",'Údaje o uchazečích'!M55)","v":""}]
[{"$f":"IF('Údaje o uchazečích'!A56=\"\",\"\",'Údaje o uchazečích'!A56)","v":""},{"$f":"IF('Údaje o uchazečích'!B56=\"\",\"\",'Údaje o uchazečích'!B56)","v":""},{"$f":"IF('Údaje o uchazečích'!C56=\"\",\"\",'Údaje o uchazečích'!C56)","v":""},{"$f":"IF('Údaje o uchazečích'!D56=\"\",\"\",'Údaje o uchazečích'!D56)","v":""},{"$nulls":6},{"$f":"IF('Údaje o uchazečích'!L56=\"\",\"\",'Údaje o uchazečích'!L56)","v":""},{"$f":"IF('Údaje o uchazečích'!M56=\"\",\"\",'Údaje o uchazečích'!M56)","v":""}]
[{"$f":"IF('Údaje o uchazečích'!A57=\"\",\"\",'Údaje o uchazečích'!A57)","v":""},{"$f":"IF('Údaje o uchazečích'!B57=\"\",\"\",'Údaje o uchazečích'!B57)","v":""},{"$f":"IF('Údaje o uchazečích'!C57=\"\",\"\",'Údaje o uchazečích'!C57)","v":""},{"$f":"IF('Údaje o uchazečích'!D57=\"\",\"\",'Údaje o uchazečích'!D57)","v":""},{"$nulls":6},{"$f":"IF('Údaje o uchazečích'!L57=\"\",\"\",'Údaje o uchazečích'!L57)","v":""},{"$f":"IF('Údaje o uchazečích'!M57=\"\",\"\",'Údaje o uchazečích'!M57)","v":""}]
[{"$f":"IF('Údaje o uchazečích'!A58=\"\",\"\",'Údaje o uchazečích'!A58)","v":""},{"$f":"IF('Údaje o uchazečích'!B58=\"\",\"\",'Údaje o uchazečích'!B58)","v":""},{"$f":"IF('Údaje o uchazečích'!C58=\"\",\"\",'Údaje o uchazečích'!C58)","v":""},{"$f":"IF('Údaje o uchazečích'!D58=\"\",\"\",'Údaje o uchazečích'!D58)","v":""},{"$nulls":6},{"$f":"IF('Údaje o uchazečích'!L58=\"\",\"\",'Údaje o uchazečích'!L58)","v":""},{"$f":"IF('Údaje o uchazečích'!M58=\"\",\"\",'Údaje o uchazečích'!M58)","v":""}]
[{"$f":"IF('Údaje o uchazečích'!A59=\"\",\"\",'Údaje o uchazečích'!A59)","v":""},{"$f":"IF('Údaje o uchazečích'!B59=\"\",\"\",'Údaje o uchazečích'!B59)","v":""},{"$f":"IF('Údaje o uchazečích'!C59=\"\",\"\",'Údaje o uchazečích'!C59)","v":""},{"$f":"IF('Údaje o uchazečích'!D59=\"\",\"\",'Údaje o uchazečích'!D59)","v":""},{"$nulls":6},{"$f":"IF('Údaje o uchazečích'!L59=\"\",\"\",'Údaje o uchazečích'!L59)","v":""},{"$f":"IF('Údaje o uchazečích'!M59=\"\",\"\",'Údaje o uchazečích'!M59)","v":""}]